bitfinex/quotes_SOLUSD_20240607
["timestamp","ask_amount","ask_price","bid_price","bid_amount"]
[1717748329091,2.1517,171.95,171.89,2.9720502]
[1717748330975,2.4919,171.94,171.89,2.9720502]
[1717748332008,0.34,171.94,171.9,2.1523]
[1717748332184,2.1516,171.96,171.9,2.1523]
[1717748334997,2.1518,171.95,171.9,2.1523]
[1717748335198,2.1518,171.95,171.89,2.9719502]
[1717748335393,0.34,171.94,171.89,2.9719502]
[1717748336090,2.1518,171.95,171.9,2.1524]
[1717748339109,0.34,171.96,171.91,2.1522]
[1717748339587,2.4916,171.96,171.91,2.1522]
[1717748342106,2.4916,171.96,171.89,0.8195502]
[1717748349215,2.3216,171.96,171.89,0.8195502]
[1717748349404,2.1516,171.96,171.89,0.8195502]
[1717748349904,6.4537,172.0,171.89,0.8195502]
[1717748350101,2.1514,171.98,171.93,2.1519]
[1717748350610,2.1514,171.98,171.92,2.1521]
[1717748350822,4.6426,171.99,171.9,6.6609]
[1717748351115,2.1518,171.95,171.89,0.8195502]
[1717748351319,2.1518,171.95,171.9,2.1524]
[1717748352522,2.4917,171.96,171.9,2.1524]
[1717748352902,2.4917,171.96,171.91,2.1522]
[1717748354900,2.4917,171.96,171.9,2.1523]
[1717748355399,2.1517,171.95,171.9,2.1523]
[1717748358708,2.4917,171.96,171.9,2.1523]
[1717748360132,2.4917,171.96,171.91,2.1522]
[1717748360632,0.34,171.96,171.91,2.1522]
[1717748362228,2.4916,171.96,171.91,2.1522]
[1717748362629,2.1515,171.97,171.92,2.1521]
[1717748362835,2.1515,171.97,171.92,8.6871]
[1717748363339,6.06784287,172.01,171.92,6.535]
[1717748363520,2.1512,172.0,171.94,2.1518]
[1717748363917,2.1512,172.0,171.95,2.1517]
[1717748364115,2.151,172.01,171.96,2.1516]
[1717748364337,2.151,172.01,171.94,6.2402]
[1717748364641,2.151,172.01,171.95,2.1517]
[1717748365427,2.151,172.01,171.96,2.1516]
[1717748365635,2.3209,172.02,171.96,8.8079]
[1717748366143,2.151,172.01,171.96,8.8079]
[1717748366322,2.151,172.01,171.96,6.6563]
[1717748368240,2.151,172.01,171.96,8.8079]
[1717748369742,0.17,172.0,171.96,6.6563]
[1717748370544,0.34,172.0,171.96,6.6563]
[1717748370747,2.4911,172.0,171.96,6.6563]
[1717748372245,0.34,172.0,171.96,6.6563]
[1717748373849,2.4911,172.0,171.96,6.6563]
[1717748374858,0.34,172.0,171.96,6.6563]
[1717748375346,3.36563606,172.0,171.96,6.6563]
[1717748375532,2.1513,171.99,171.94,8.1656]
[1717748376528,2.4912,172.0,171.94,8.1656]
[1717748379253,2.4912,172.0,171.95,2.1517]
[1717748380452,0.87453606,171.99,171.95,2.1517]
[1717748380651,0.17,171.98,171.94,8.1655]
[1717748381741,0.17,172.0,171.95,2.1517]
[1717748381949,2.4911,172.0,171.95,2.1517]
[1717748385634,2.4911,172.0,171.95,8.1999]
[1717748388059,0.34,172.0,171.95,8.1999]
[1717748389573,2.4911,172.0,171.95,8.1999]
[1717748392272,0.34,172.0,171.96,2.1516]
[1717748392454,0.34,172.0,171.96,8.6737]
[1717748394256,0.34,172.0,171.96,6.5221]
[1717748394869,0.34,172.0,171.96,8.6737]
[1717748395058,0.17,172.0,171.96,2.1516]
[1717748395265,0.17,172.0,171.97,6.5221]
[1717748399265,2.1509,172.02,171.97,6.5221]
[1717748399494,2.321,172.01,171.97,16.1617]
[1717748399661,2.321,172.01,171.98,6.232]
[1717748403075,2.321,172.01,171.97,16.1617]
[1717748403266,2.321,172.01,171.98,6.2939]
[1717748403950,2.151,172.01,171.98,6.2939]
[1717748404360,2.1511,172.0,171.98,6.2939]
[1717748412099,2.151,172.02,171.98,6.2939]
[1717748412470,2.4909,172.03,171.98,6.2939]
[1717748414594,2.1509,172.02,171.98,6.2939]
[1717748414891,2.4907,172.03,171.98,8.4452]
[1717748416293,2.4907,172.03,171.98,6.2939]
[1717748418486,2.4907,172.03,171.99,8.85383831]
[1717748418786,2.3207,172.03,171.99,6.5298]
[1717748419791,2.1507,172.03,171.99,6.5298]
[1717748424207,2.1507,172.03,171.98,2.1514]
[1717748424706,2.1509,172.02,171.97,2.1514]
[1717748425000,2.1509,172.02,171.97,8.1726]
[1717748425684,2.1508,172.03,171.97,8.1726]
[1717748426600,2.1508,172.03,171.98,2.1514]
[1717748428318,2.3206,172.04,171.99,2.1512]
[1717748429533,2.1507,172.03,171.98,2.1513]
[1717748430023,2.3207,172.04,171.98,8.2276]
[1717748431616,2.3207,172.04,171.99,2.1512]
[1717748432323,2.3207,172.04,171.98,6.0763]
[1717748432324,0.17,172.05,172.0,3.31187206]
[1717748432525,0.34,172.05,172.01,2.151]
[1717748433124,0.34,172.05,172.0,2.1511]
[1717748433311,2.4905,172.05,172.0,2.1511]
[1717748434907,2.3205,172.05,172.0,2.1511]
[1717748435416,2.3205,172.05,171.98,6.0763]
[1717748435417,2.1505,172.05,171.99,2.1512]
[1717748438738,2.1505,172.05,172.0,2.1511]
[1717748438906,2.1504,172.06,172.0,2.1511]
[1717748440025,2.1505,172.05,172.0,2.1511]
[1717748440330,2.1504,172.06,172.01,2.1509]
[1717748440526,2.4903,172.07,172.01,2.1509]
[1717748440737,0.34,172.07,171.98,6.0763]
[1717748440917,0.34,172.07,171.99,2.1512]
[1717748441742,0.34,172.07,171.95,20.0]
[1717748441743,2.1505,172.06,172.0,2.1511]
[1717748443415,2.4903,172.07,172.01,2.151]
[1717748444634,2.1504,172.06,172.01,2.151]
[1717748454645,2.1504,172.06,172.0,2.1511]
[1717748455652,2.1504,172.06,172.01,2.151]
[1717748463656,1.04453606,172.05,171.98,2.1513]
[1717748463869,2.1508,172.03,171.97,2.1514]
[1717748464067,2.1511,172.01,171.95,2.1516]
[1717748464366,2.1511,172.01,171.96,2.1516]
[1717748467564,0.34,172.04,171.91,20.0]
[1717748467735,2.1511,172.01,171.95,2.1516]
[1717748469262,2.1511,172.01,171.96,2.1516]
[1717748470459,2.3209,172.02,171.97,2.1515]
[1717748473655,7.849,172.01,171.96,2.1516]
[1717748473966,2.151,172.01,171.96,2.1516]
[1717748476655,2.3209,172.02,171.96,2.1516]
[1717748477062,2.1509,172.02,171.96,2.1516]
[1717748477770,2.151,172.01,171.96,2.1516]
[1717748479581,2.1509,172.02,171.97,2.1515]
[1717748490372,2.1509,172.02,171.98,2.1513]
[1717748491385,2.1509,172.02,171.97,2.1515]
[1717748494589,2.151,172.01,171.97,2.1515]
[1717748494994,2.151,172.01,171.96,2.1516]
[1717748497119,2.151,172.01,171.97,2.1515]
[1717748498894,2.1509,172.02,171.97,2.1515]
[1717748499090,7.8489,172.02,171.97,2.1515]
[1717748500170,5.698,172.01,171.97,2.1515]
[1717748500384,5.698,172.01,171.96,2.1516]
[1717748500385,5.698,172.0,171.96,2.1516]
[1717748501087,7.8491,172.0,171.95,2.1517]
[1717748501600,5.698,172.0,171.96,2.1516]
[1717748501998,2.151,172.01,171.96,2.1516]
[1717748503604,2.4909,172.02,171.97,2.1515]
[1717748503800,0.34,172.01,171.97,2.1515]
[1717748508211,2.1509,172.02,171.97,2.1515]
[1717748511929,2.1508,172.03,171.98,2.1513]
[1717748512235,2.3208,172.03,171.98,2.1513]
[1717748514210,2.1509,172.02,171.97,2.1515]
[1717748522730,0.17,172.04,171.91,20.0]
[1717748522731,0.17,172.04,171.93,15.9734]
[1717748523110,0.17,172.04,171.94,45.0]
[1717748523307,2.3206,172.04,171.94,45.0]
[1717748524630,2.1508,172.03,171.94,45.0]
[1717748530529,2.3206,172.05,171.95,6.6207]
[1717748531817,2.1506,172.05,171.95,6.6207]
[1717748533442,2.1506,172.05,171.96,1.16261062]
[1717748533611,2.1504,172.06,171.96,46.16261062]
[1717748533811,2.1504,172.06,171.97,16.2139]
[1717748534043,2.1504,172.06,171.97,17.37874057]
[1717748534537,2.1504,172.06,171.97,16.2139]
[1717748535018,2.1504,172.06,171.98,6.6117]
[1717748536440,2.1503,172.07,171.98,6.6117]
[1717748537448,2.1504,172.06,171.98,6.6117]
[1717748542253,6.05943167,172.1,171.98,6.6117]
[1717748542444,0.34,172.09,171.98,6.6117]
[1717748543048,2.49,172.09,172.0,6.5353]
[1717748544757,2.32,172.09,172.0,6.5353]
[1717748546047,2.32,172.09,172.03,2.1507]
[1717748551156,2.32,172.09,172.04,2.1506]
[1717748551536,2.32,172.09,172.05,6.1632]
[1717748559562,2.1501,172.08,172.05,6.1632]
[1717748560963,2.32,172.09,172.05,6.1632]
[1717748569676,2.1501,172.08,172.04,2.1506]
[1717748570359,2.1501,172.08,172.04,8.4966]
[1717748571472,2.32,172.09,172.04,8.4966]
[1717748588373,2.32,172.09,172.05,6.0685]
[1717748593093,0.17,172.09,172.0,6.3688]
[1717748593303,2.1504,172.06,172.01,2.151]
[1717748593589,2.1506,172.05,171.99,8.5199]
[1717748593783,2.1506,172.04,171.99,6.3688]
[1717748594387,2.1506,172.04,171.99,8.52]
[1717748594588,2.1508,172.03,171.99,6.3688]
[1717748594893,2.3206,172.04,171.99,8.52]
[1717748597069,0.17,172.04,172.0,8.1556]
[1717748597276,2.3205,172.05,172.0,6.0045]
[1717748597990,2.3205,172.05,172.0,8.1556]
[1717748599305,2.3205,172.05,172.0,6.0045]
[1717748599981,2.1507,172.04,172.0,6.0045]
[1717748604400,0.17,172.05,172.0,6.0045]
[1717748604401,2.3205,172.05,172.0,6.0045]
[1717748604592,2.1505,172.05,172.0,6.0045]
[1717748606810,2.1505,172.05,172.0,8.1556]
[1717748607606,2.1506,172.04,172.0,6.0045]
[1717748607807,2.1505,172.05,172.0,8.1556]
[1717748608312,2.3204,172.06,172.01,2.151]
[1717748609317,2.1505,172.05,172.0,8.1556]
[1717748614204,2.1505,172.05,172.01,6.0521]
[1717748629533,2.1506,172.04,171.99,2.1512]
[1717748630051,2.1506,172.04,171.99,8.8111]
[1717748631525,2.1506,172.04,172.0,2.1511]
[1717748631735,2.1505,172.05,172.0,2.1511]
[1717748634040,3.36513606,172.04,171.99,8.8111]
[1717748634342,3.02513606,172.04,171.99,8.8111]
[1717748634524,3.02513606,172.04,171.99,2.1512]
[1717748634727,0.34,172.03,171.99,2.1512]
[1717748634939,0.87453606,172.02,171.98,2.1513]
[1717748635240,0.34,172.03,171.95,6.6531]
[1717748635918,2.1511,172.01,171.96,2.1515]
[1717748636945,2.1509,172.02,171.97,2.1515]
[1717748640450,2.151,172.01,171.96,2.1516]
[1717748641722,2.151,172.01,171.96,1.6516]
[1717748646248,2.3211,172.0,171.95,2.1517]
[1717748646463,0.17,172.01,171.91,6.2225]
[1717748646634,2.1513,171.99,171.94,2.1518]
[1717748647322,5.51613606,172.03,171.91,6.2225]
[1717748647323,2.1512,172.0,171.95,2.1517]
[1717748647742,2.1512,172.0,171.95,2.00429929]
[1717748648749,2.491,172.01,171.95,2.00429929]
[1717748651061,0.87453606,172.0,171.95,2.00429929]
[1717748653148,3.02563606,172.0,171.95,2.00429929]
[1717748653340,2.1511,172.0,171.95,2.00429929]
[1717748655365,3.36553606,172.01,171.96,2.1516]
[1717748657651,2.1511,172.0,171.96,2.1516]
[1717748658978,2.1511,172.0,171.91,6.2225]
[1717748659482,2.1511,172.0,171.95,2.1517]
[1717748667768,8.1893,171.99,171.94,2.1518]
[1717748669089,2.1514,171.98,171.94,2.1518]
[1717748669406,2.1516,171.96,171.92,2.1521]
[1717748670194,7.8496,171.96,171.92,2.1521]
[1717748670374,7.8496,171.96,171.9,2.1522]
[1717748670786,2.1517,171.95,171.9,2.1522]
[1717748671998,7.8497,171.96,171.9,2.1522]
[1717748672174,0.17,171.95,171.9,2.1522]
[1717748672690,0.17,171.95,171.91,2.1522]
[1717748679614,0.17,171.95,171.9,2.1523]
[1717748687531,2.3217,171.95,171.9,2.1523]
[1717748697131,0.17,171.95,171.9,2.1523]
[1717748697343,0.34,171.95,171.9,2.1523]
[1717748697548,2.4918,171.95,171.9,2.1523]
[1717748700333,0.34,171.95,171.9,2.1523]
[1717748701261,0.34,171.95,171.89,0.8195502]
[1717748701426,2.1519,171.94,171.89,2.9720502]
[1717748701761,2.4918,171.95,171.9,2.1524]
[1717748703946,0.34,171.95,171.91,2.1522]
[1717748706559,0.34,171.95,171.9,2.1523]
[1717748708163,2.4917,171.95,171.9,2.1523]
[1717748720268,0.34,171.95,171.9,2.1523]
[1717748720568,2.4918,171.95,171.91,2.1522]
[1717748729160,2.3218,171.95,171.91,2.1522]
[1717748734174,2.1517,171.96,171.92,2.1521]
[1717748734664,2.1515,171.97,171.93,2.152]
[1717748735256,2.1517,171.96,171.92,2.1521]
[1717748736277,2.1516,171.97,171.92,2.1521]
[1717748737478,2.1516,171.97,171.93,2.152]
[1717748744904,2.1516,171.97,171.92,2.152]
[1717748745882,2.1516,171.97,171.93,2.152]
[1717748746563,2.3214,171.98,171.94,2.1518]
[1717748747573,2.3214,171.98,171.93,2.1519]
[1717748750286,2.1515,171.97,171.93,2.1519]
[1717748756296,2.3214,171.98,171.89,0.8195502]
[1717748756476,2.3214,171.98,171.93,2.1519]
[1717748756793,2.1515,171.97,171.93,2.1519]
[1717748757583,2.1514,171.98,171.93,2.1519]
[1717748760805,2.1514,171.98,171.94,2.1519]
[1717748765513,5.698,172.0,171.89,0.8195502]
[1717748765716,7.8492,172.0,171.95,2.1517]
[1717748766202,2.1512,171.99,171.95,2.1517]
[1717748766788,2.1512,171.99,171.94,2.1518]
[1717748769019,0.34,172.01,171.89,0.8195502]
[1717748769315,0.34,172.01,171.96,2.1516]
[1717748769316,2.4911,172.01,171.96,2.1516]
[1717748769515,2.1511,172.0,171.96,2.1516]
[1717748769692,2.1511,172.0,171.95,2.1517]
[1717748771788,2.1511,172.0,171.96,2.1516]
[1717748772411,2.1511,172.0,171.95,2.1517]
[1717748774014,2.1511,172.0,171.98,7.31]
[1717748778525,2.1511,172.0,171.96,2.1516]
[1717748778695,2.1511,172.0,171.97,7.31]
[1717748779222,2.1511,172.0,171.96,2.1516]
[1717748779410,2.1511,172.0,171.97,7.31]
[1717748785823,2.1511,172.0,171.96,2.1516]
[1717748786023,2.1511,172.0,171.96,9.4616]
[1717748786323,0.17,171.99,171.95,2.1517]
[1717748786506,0.34,171.99,171.96,7.31]
[1717748788732,0.34,171.99,171.96,9.4616]
[1717748789805,1.21453606,171.99,171.9,29.24]
[1717748790120,1.21453606,171.99,171.89,20.8195502]
[1717748790121,2.1514,171.98,171.93,9.4619]
[1717748790306,3.02593606,171.98,171.93,9.4619]
[1717748790916,3.02593606,171.98,171.94,2.1519]
[1717748794525,3.02593606,171.98,171.94,9.4619]
[1717748795316,2.1514,171.98,171.95,7.31]
[1717748796129,2.4913,171.99,171.95,9.4617]
[1717748796317,2.4913,171.99,171.94,2.1518]
[1717748796318,2.1514,171.98,171.94,2.1518]
[1717748798438,2.1514,171.98,171.95,7.31]
[1717748798644,2.4913,171.99,171.95,9.4617]
[1717748798938,2.4913,171.99,171.96,7.31]
[1717748799724,2.1514,171.98,171.96,7.31]
[1717748800140,2.1514,171.98,171.94,2.1518]
[1717748800327,2.1514,171.98,171.96,7.31]
[1717748801411,2.1512,172.0,171.96,7.31]
[1717748801613,2.1511,172.01,171.97,7.31]
[1717748802032,2.1511,172.0,171.97,7.31]
[1717748807138,2.1513,171.99,171.96,7.31]
[1717748807315,2.3213,171.99,171.96,7.31]
[1717748807927,2.3213,171.99,171.95,9.4617]
[1717748809250,0.17,171.99,171.95,9.4617]
[1717748809420,0.34,171.99,171.95,9.4617]
[1717748809738,2.4913,171.99,171.95,9.4617]
[1717748811047,0.34,171.99,171.95,9.4617]
[1717748813150,0.34,171.99,171.96,2.1516]
[1717748815055,0.34,171.99,171.91,6.242]
[1717748815056,2.4913,171.99,171.94,2.1518]
[1717748815345,2.4913,171.99,171.95,7.31]
[1717748815542,2.4913,171.99,171.95,9.4617]
[1717748818330,0.87453606,171.98,171.95,9.4617]
[1717748818548,2.4913,171.99,171.95,9.4617]
[1717748827249,0.34,171.99,171.96,2.1516]
[1717748827858,0.34,171.98,171.96,2.1516]
[1717748828057,2.4912,172.0,171.96,2.1516]
[1717748828261,2.1512,171.99,171.96,2.1516]
[1717748828452,0.34,171.98,171.95,2.1517]
[1717748828655,0.34,171.98,171.95,9.4617]
[1717748841948,2.4914,171.98,171.94,2.1518]
[1717748842155,3.36593606,171.98,171.94,9.4618]
[1717748842477,2.4914,171.98,171.94,9.4618]
[1717748842660,0.34,171.98,171.94,9.4618]
[1717748844171,0.34,171.98,171.95,9.4617]
[1717748849958,0.34,171.98,171.95,2.1517]
[1717748850165,0.34,171.98,171.95,9.4617]
[1717748864163,0.17,171.98,171.95,9.4617]
[1717748866173,0.34,171.98,171.95,9.4617]
[1717748866483,0.34,171.98,171.96,2.1516]
[1717748866691,0.34,171.99,171.96,7.31]
[1717748866896,2.1512,171.99,171.97,7.31]
[1717748869796,0.17,171.98,171.97,7.31]
[1717748872186,0.17,171.98,171.95,2.1516]
[1717748872506,0.17,171.98,171.96,7.31]
[1717748872794,2.1512,171.99,171.97,7.31]
[1717748872996,2.1512,171.99,171.96,7.31]
[1717748877625,2.1512,171.99,171.97,7.31]
[1717748878419,2.1512,171.99,171.96,7.31]
[1717748880245,2.1512,171.99,171.97,7.31]
[1717748880621,2.3212,172.0,171.97,7.31]
[1717748881825,2.1509,172.02,171.99,7.31]
[1717748882035,2.1508,172.03,172.0,7.31]
[1717748882222,2.1508,172.03,172.01,7.31]
[1717748882743,2.1507,172.04,172.02,7.31]
[1717748883330,2.1505,172.05,172.02,7.31]
[1717748883538,2.1505,172.05,172.03,7.31]
[1717748883928,2.1505,172.05,172.01,2.151]
[1717748883929,2.1504,172.06,172.04,7.31]
[1717748887954,4.2999,172.1,172.0,6.4299]
[1717748888253,2.15,172.09,172.06,7.31]
[1717748893845,2.15,172.09,172.07,7.31]
[1717748894244,2.15,172.09,172.06,7.31]
[1717748896731,2.3199,172.1,172.06,7.31]
[1717748896944,2.15,172.09,172.06,7.31]
[1717748898625,2.3199,172.1,172.06,7.31]
[1717748899454,2.15,172.09,172.06,7.31]
[1717748900458,2.15,172.09,172.07,7.31]
[1717748904757,2.1499,172.1,172.08,7.31]
[1717748911562,2.1499,172.1,172.09,7.31]
[1717748912471,2.15,172.09,172.0,6.4299]
[1717748912661,11.62283606,172.12,172.08,7.31]
[1717748912662,2.1499,172.1,172.08,7.31]
[1717748913055,2.1498,172.11,172.09,7.31]
[1717748914267,2.1499,172.1,172.09,7.31]
[1717748914765,2.1499,172.1,172.0,6.4299]
[1717748915068,2.1499,172.1,172.09,7.31]
[1717748915771,10.7483,172.12,172.08,7.31]
[1717748915947,11.62283606,172.12,172.08,7.31]
[1717748916970,2.1499,172.1,172.08,7.31]
[1717748918663,2.1499,172.1,172.01,45.0]
[1717748918863,2.1499,172.1,172.08,7.31]
[1717748920649,2.1498,172.11,172.08,7.31]
[1717748921780,2.1499,172.1,172.08,7.31]
[1717748923169,2.1498,172.11,172.08,7.31]
[1717748924469,2.1499,172.1,172.08,7.31]
[1717748925575,2.1499,172.1,172.09,7.31]
[1717748927175,2.1498,172.11,172.09,7.31]
[1717748927356,2.1498,172.11,172.08,7.31]
[1717748927980,2.1499,172.1,172.08,7.31]
[1717748931470,2.1498,172.11,172.08,7.31]
[1717748932174,2.1499,172.1,172.08,7.31]
[1717748944489,2.1498,172.11,172.08,7.31]
[1717748944694,10.33993153,172.16,172.1,7.31]
[1717748944881,2.1495,172.13,172.11,7.31]
[1717748945079,2.1494,172.14,172.11,7.31]
[1717748945620,2.1495,172.13,172.11,7.31]
[1717748953398,2.1494,172.14,172.11,7.31]
[1717748953596,2.1494,172.14,172.12,7.31]
[1717748953772,2.1493,172.15,172.12,7.31]
[1717748962899,2.1493,172.15,172.05,6.0895]
[1717748963096,2.1493,172.15,172.12,7.31]
[1717748963297,19.3419,172.17,172.06,45.0]
[1717748963298,2.1494,172.14,172.06,45.0]
[1717748963480,2.1494,172.14,172.05,6.0895]
[1717748963481,11.609,172.14,172.05,6.0895]
[1717748963687,2.1497,172.12,172.08,7.31]
[1717748964302,2.1498,172.11,172.07,7.31]
[1717748964596,2.1497,172.12,172.07,7.31]
[1717748967882,2.1495,172.13,172.07,7.31]
[1717748968283,3.02403606,172.13,172.07,7.31]
[1717748968506,2.1501,172.09,172.05,6.0895]
[1717748968703,2.15,172.09,172.03,7.31]
[1717748969002,2.1501,172.08,172.03,7.31]
[1717748969316,2.15,172.09,172.03,7.31]
[1717748969512,3.02453606,172.09,172.03,7.31]
[1717748969808,10.33453606,172.09,172.02,7.31]
[1717748969982,3.02453606,172.09,172.03,7.31]
[1717748970402,3.02453606,172.09,172.0,6.604]
[1717748970701,3.02453606,172.09,172.03,7.31]
[1717748971121,2.15,172.09,172.03,7.31]
[1717748971324,2.1502,172.08,172.0,6.604]
[1717748973840,2.1502,172.07,172.02,7.31]
[1717748974905,10.33473606,172.08,172.02,7.31]
[1717748975914,2.1503,172.07,172.0,6.604]
[1717748976219,2.1503,172.07,172.02,7.31]
[1717748977723,3.02483606,172.07,172.02,7.31]
[1717748980206,3.02483606,172.07,172.0,6.604]
[1717748980613,3.02483606,172.07,172.02,7.31]
[1717748981349,2.1503,172.07,172.02,7.31]
[1717748982325,2.1503,172.07,172.03,7.31]
[1717748982528,2.3202,172.08,172.03,7.31]
[1717748982825,8.5982,172.13,172.07,7.31]
[1717748983032,2.1498,172.11,172.07,7.31]
[1717748983526,8.5982,172.13,172.07,7.31]
[1717748983527,2.1499,172.1,172.07,7.31]
[1717748984515,2.1498,172.11,172.07,7.31]
[1717748985847,2.1499,172.1,172.07,7.31]
[1717748989030,2.15,172.09,172.07,7.31]
[1717748989613,2.15,172.09,172.05,7.31]
[1717748996238,2.15,172.09,172.0,6.604]
[1717748996426,2.15,172.09,172.05,7.31]
[1717749000849,2.15,172.09,172.0,6.604]
[1717749001034,2.15,172.09,172.05,7.31]
[1717749001373,2.15,172.09,172.0,6.604]
[1717749001945,2.15,172.09,172.05,7.31]
[1717749005236,2.1499,172.1,172.0,6.604]
[1717749005447,2.1499,172.1,172.05,7.31]
[1717749005643,2.15,172.09,172.05,7.31]
[1717749005846,2.1499,172.1,172.05,7.31]
[1717749006151,2.1499,172.1,172.0,6.604]
[1717749006326,2.1499,172.1,172.05,7.31]
[1717749006533,2.15,172.09,172.05,7.31]
[1717749011468,2.1499,172.1,172.05,7.31]
[1717749011640,2.1499,172.1,172.06,7.31]
[1717749015658,4.2996,172.11,172.06,7.31]
[1717749015659,2.15,172.09,172.06,7.31]
[1717749015963,2.15,172.09,172.05,7.31]
[1717749016175,2.15,172.09,172.0,6.604]
[1717749016466,4.2996,172.11,172.05,7.31]
[1717749016467,2.1501,172.08,172.05,7.31]
[1717749016963,15.92433606,172.1,172.0,6.604]
[1717749017157,2.1504,172.07,172.0,6.604]
[1717749017365,2.1504,172.06,172.0,6.604]
[1717749017565,2.1504,172.06,171.96,6.3062]
[1717749017872,2.1504,172.06,172.01,7.31]
[1717749018159,2.1504,172.06,171.97,65.0]
[1717749018559,2.1504,172.06,172.01,7.31]
[1717749018774,2.1504,172.06,172.02,7.31]
[1717749019586,2.1504,172.06,171.97,20.0]
[1717749019881,2.1504,172.06,172.01,7.31]
[1717749020249,2.1504,172.06,171.97,20.0]
[1717749020448,2.1504,172.06,172.01,7.31]
[1717749020667,2.1505,172.05,171.97,20.0]
[1717749020844,2.1505,172.06,172.01,7.31]
[1717749021040,3.02503606,172.05,171.97,20.0]
[1717749021262,0.87453606,172.05,172.01,7.31]
[1717749023456,2.1504,172.06,172.01,7.31]
[1717749024676,2.1504,172.06,172.02,7.31]
[1717749025178,2.1503,172.07,172.02,7.31]
[1717749026248,2.1503,172.07,171.99,7.31]
[1717749026471,2.1503,172.07,171.99,29.24]
[1717749027079,2.1504,172.06,171.97,20.0]
[1717749027270,2.1504,172.06,172.03,7.31]
[1717749029370,2.1504,172.06,172.02,7.31]
[1717749029760,2.1504,172.06,171.97,20.0]
[1717749029967,2.1504,172.06,172.02,7.31]
[1717749036893,2.1504,172.06,171.97,20.0]
[1717749037189,2.1504,172.06,172.02,7.31]
[1717749047499,2.1504,172.06,172.03,7.31]
[1717749048186,2.1504,172.06,171.97,20.0]
[1717749048565,2.1504,172.06,172.03,7.31]
[1717749051406,2.1504,172.06,171.97,20.0]
[1717749051697,2.1504,172.06,172.02,7.31]
[1717749052002,2.1504,172.06,171.97,20.0]
[1717749052187,2.1505,172.05,171.97,20.0]
[1717749052389,2.1505,172.05,172.01,7.31]
[1717749052679,2.1505,172.05,171.97,20.0]
[1717749052889,2.1505,172.05,172.0,7.31]
[1717749053483,2.1505,172.05,172.01,2.1509]
[1717749053688,2.1505,172.05,172.02,2.1508]
[1717749057596,2.1505,172.05,172.01,7.31]
[1717749058494,2.1505,172.05,171.97,20.0]
[1717749058701,2.1505,172.05,172.0,7.31]
[1717749059501,2.1505,172.05,171.97,20.0]
[1717749059683,2.1505,172.05,172.0,7.31]
[1717749059884,2.4904,172.06,172.0,7.31]
[1717749060093,0.34,172.05,172.01,7.31]
[1717749061002,2.1503,172.07,172.02,7.31]
[1717749061204,4.3001,172.09,172.03,7.31]
[1717749061505,2.1503,172.07,172.03,7.31]
[1717749062882,2.1502,172.08,171.99,7.31]
[1717749063205,15.0472,172.13,172.06,7.31]